bitfinex/quotes_ETHUSD_20251108
["timestamp","ask_amount","ask_price","bid_price","bid_amount"]
[1762579417502,0.1448,3446.9,3446.7,2.90130403]
[1762579418740,0.1448,3446.9,3446.8,2.90124173]
[1762579418942,0.1448,3446.9,3446.8,3.33974173]
[1762579419147,0.1448,3446.9,3446.8,2.90124173]
[1762579419507,0.1448,3446.9,3446.8,3.33974173]
[1762579419702,0.1448,3446.9,3446.4,0.1465]
[1762579419935,0.8356,3446.9,3446.3,3.04645022]
[1762579420355,0.8356,3446.9,3446.5,2.90143718]
[1762579420535,0.6908,3446.9,3446.4,2.90154824]
[1762579420720,0.1448,3446.6,3446.5,2.90149426]
[1762579421926,0.1448,3446.7,3446.6,2.90136417]
[1762579422352,0.1448,3446.7,3446.6,3.33986417]
[1762579422661,0.1448,3446.7,3446.6,3.77836417]
[1762579422826,0.1448,3446.7,3446.6,3.33986417]
[1762579423028,0.1448,3446.7,3446.6,2.90136417]
[1762579423561,0.1448,3446.7,3446.5,2.9014804]
[1762579423752,0.6291,3446.7,3446.5,2.9014804]
[1762579424137,0.1448,3446.7,3446.6,2.90141008]
[1762579424325,0.1448,3446.7,3446.6,3.33991008]
[1762579424979,0.6291,3446.7,3446.2,0.1448]
[1762579425280,0.3624,3446.3,3445.9,2.90199656]
[1762579425571,0.1894,3446.8,3446.3,2.90161243]
[1762579425770,0.1894,3446.8,3446.2,3.34022328]
[1762579425976,0.6644,3446.8,3446.2,3.34022328]
[1762579426279,0.6644,3446.8,3446.2,2.90172328]
[1762579426461,0.475,3446.7,3446.2,2.90174559]
[1762579426840,0.4843,3446.3,3446.2,2.90174559]
[1762579427041,0.4843,3446.3,3445.9,2.90198498]
[1762579427275,0.4843,3446.3,3446.1,2.90175354]
[1762579427576,0.4843,3446.3,3446.2,2.90174685]
[1762579427947,0.4843,3446.3,3445.6,0.001]
[1762579428151,0.4843,3446.3,3445.9,2.90196795]
[1762579428459,0.475,3446.2,3445.6,0.001]
[1762579428636,0.3624,3445.8,3445.7,2.90216073]
[1762579428833,0.3624,3445.8,3445.6,2.9032404]
[1762579429036,0.4843,3445.7,3445.6,0.001]
[1762579429438,0.9593,3445.7,3445.6,0.001]
[1762579429989,0.4843,3445.7,3445.6,0.001]
[1762579430678,0.9593,3445.7,3445.6,0.001]
[1762579431460,3.86146791,3445.7,3445.6,0.001]
[1762579432461,5.12117991,3445.7,3445.6,0.001]
[1762579433713,0.475,3446.6,3445.6,0.4395]
[1762579433881,0.4843,3445.7,3445.6,0.001]
[1762579434270,0.4843,3445.7,3445.6,2.90325214]
[1762579434507,3.86146791,3445.7,3445.6,0.001]
[1762579434708,5.89235315,3445.7,3445.6,0.001]
[1762579434886,0.405504,3445.4,3445.2,0.001]
[1762579435208,3.38680486,3445.3,3445.2,0.001]
[1762579435411,3.86180486,3445.3,3445.2,0.001]
[1762579435598,3.9781196,3445.3,3445.2,0.001]
[1762579435973,4.3836236,3445.3,3445.2,0.001]
[1762579436271,4.78478762,3445.3,3445.2,0.001]
[1762579436868,4.3836236,3445.3,3445.2,0.001]
[1762579437673,4.78478762,3445.3,3445.2,0.001]
[1762579438392,5.6433356,3445.3,3445.2,0.001]
[1762579438707,6.04449962,3445.3,3445.2,0.001]
[1762579439881,5.6433356,3445.3,3445.2,0.001]
[1762579441015,2.33532674,3445.3,3445.2,0.001]
[1762579441216,5.2378316,3445.3,3445.2,0.001]
[1762579441430,5.6433356,3445.3,3445.2,0.001]
[1762579444391,6.04449962,3445.3,3445.2,0.001]
[1762579446296,6.04449962,3445.3,3443.4,2.90409906]
[1762579446297,2.90427509,3443.2,3442.1,0.005]
[1762579446591,5.46895511,3443.2,3442.1,0.005]
[1762579446790,5.93845511,3443.2,3442.1,0.005]
[1762579447046,6.05163013,3443.2,3442.1,0.005]
[1762579447215,5.65179109,3443.2,3442.1,0.005]
[1762579447544,4.57033481,3442.2,3442.1,0.005]
[1762579447743,5.15713481,3442.2,3442.1,0.005]
[1762579447961,1.846512,3442.2,3442.1,0.005]
[1762579448350,2.316012,3442.2,3442.1,0.005]
[1762579448651,5.62663481,3442.2,3442.1,0.005]
[1762579448861,1.259712,3442.2,3442.1,0.005]
[1762579449348,2.90357788,3444.1,3442.1,0.592]
[1762579449554,0.86609188,3444.2,3442.1,0.592]
[1762579449555,0.6641,3443.3,3442.4,0.4405]
[1762579449721,0.4695,3443.1,3442.2,2.90505097]
[1762579449926,3.37389603,3443.1,3442.2,2.90505097]
[1762579450153,0.4695,3443.1,3442.1,0.1525]
[1762579450364,0.405504,3442.7,3442.1,0.1525]
[1762579450709,0.405504,3442.8,3442.1,0.1525]
[1762579451256,0.1946,3442.9,3442.1,0.593]
[1762579451430,0.407504,3443.1,3442.3,2.90496435]
[1762579451666,1.667216,3443.1,3442.3,2.90496435]
[1762579451994,1.667216,3443.1,3442.4,2.90487326]
[1762579452292,1.261712,3443.1,3442.5,2.90480181]
[1762579452453,1.261712,3443.1,3442.3,2.90503442]
[1762579452661,0.002,3443.1,3443.0,0.4405]
[1762579452856,0.002,3443.1,3442.2,0.4405]
[1762579453171,0.002,3443.1,3442.4,2.90492652]
[1762579453383,0.002,3443.1,3442.2,0.4405]
[1762579453556,0.002,3443.1,3442.5,2.90481061]
[1762579453750,0.002,3443.1,3442.7,2.90462913]
[1762579453999,0.002,3443.1,3443.0,0.4405]
[1762579454500,0.002,3443.1,3443.0,3.34494379]
[1762579454796,0.002,3443.1,3443.0,3.73235379]
[1762579456090,0.002,3443.1,3443.0,3.76139822]
[1762579456252,0.002,3443.1,3443.0,3.87715379]
[1762579457656,0.002,3443.1,3443.0,3.73235379]
[1762579460486,0.002,3443.5,3443.4,2.9041064]
[1762579460798,0.002,3443.5,3443.4,3.32054746]
[1762579460995,0.002,3443.5,3443.4,3.6789064]
[1762579462606,0.002,3443.5,3443.4,0.3874]
[1762579463096,0.002,3443.5,3443.4,3.2915064]
[1762579463484,0.002,3443.5,3443.4,3.6789064]
[1762579467806,0.002,3443.5,3443.4,3.8237064]
[1762579469008,0.002,3443.8,3443.7,2.90385341]
[1762579469190,0.002,3443.8,3443.7,3.43605341]
[1762579469504,0.002,3443.8,3443.7,3.82345341]
[1762579470574,0.1448,3444.7,3443.7,3.82345341]
[1762579470575,0.1448,3444.7,3444.6,2.90309469]
[1762579470762,0.005,3444.9,3444.8,2.90292614]
[1762579470967,0.005,3444.9,3444.8,3.67772614]
[1762579472165,0.005,3444.9,3444.8,3.29032614]
[1762579472812,0.005,3444.9,3444.8,3.67772614]
[1762579476108,0.005,3444.9,3444.8,3.29032614]
[1762579476894,0.005,3444.9,3444.8,3.67772614]
[1762579477798,0.005,3444.9,3444.8,4.08323014]
[1762579478198,0.005,3444.9,3444.8,2.90292614]
[1762579479514,0.005,3444.9,3444.6,2.90302123]
[1762579479515,0.005,3444.9,3444.2,2.90336844]
[1762579480014,0.4828,3444.8,3443.6,0.3874]
[1762579480311,0.4828,3444.8,3444.5,2.90317676]
[1762579480511,0.4828,3444.8,3443.8,2.90371385]
[1762579480710,0.4828,3444.8,3444.4,2.90325458]
[1762579480913,0.4935,3444.5,3444.4,2.90325458]
[1762579481274,0.4828,3444.8,3444.4,2.90325458]
[1762579481275,0.4828,3444.8,3444.5,2.90312878]
[1762579481803,0.4828,3444.8,3444.3,3.04814728]
[1762579481804,0.4935,3444.6,3444.3,0.1448]
[1762579482009,0.3346,3444.9,3444.7,0.3874]
[1762579482010,0.005,3444.9,3444.7,0.3874]
[1762579482192,0.005,3444.9,3444.8,3.69583014]
[1762579482374,0.005,3444.9,3444.8,3.30843014]
[1762579482576,0.6949,3444.9,3443.9,2.90363899]
[1762579482948,0.6949,3444.9,3444.5,2.90317867]
[1762579483075,0.3977,3444.6,3444.5,2.90317867]
[1762579483413,0.3977,3444.6,3444.0,0.405504]
[1762579483788,0.3977,3444.6,3444.5,2.90317898]
[1762579484710,0.2007,3444.9,3444.7,2.90301042]
[1762579484711,0.005,3444.9,3444.7,2.90301042]
[1762579484911,0.005,3444.9,3444.8,3.3193554]
[1762579485613,0.005,3444.9,3444.8,3.29032614]
[1762579485800,0.4992,3444.9,3444.8,2.90292614]
[1762579486001,0.005,3444.9,3444.8,2.90292614]
[1762579487685,0.007,3444.9,3444.8,2.90292614]
[1762579488430,0.007,3444.9,3444.7,2.90297867]
[1762579488718,0.5012,3444.9,3444.8,2.90292614]
[1762579489016,0.5012,3444.9,3443.3,4.03589156]
[1762579489017,0.4873,3444.8,3444.3,2.90327107]
[1762579489317,0.4873,3444.8,3443.8,1.260712]
[1762579489530,0.4873,3444.8,3443.8,0.001]
[1762579489820,0.4873,3444.8,3443.9,0.405504]
[1762579490020,0.4873,3444.8,3444.3,2.90328759]
[1762579490381,0.4942,3444.4,3444.3,2.90328759]
[1762579491126,0.4942,3444.4,3443.8,0.001]
[1762579491819,0.9815,3444.4,3443.8,0.001]
[1762579492321,0.4873,3444.3,3443.9,2.90360658]
[1762579492624,0.4873,3444.3,3443.9,2.90367251]
[1762579492931,0.4942,3444.0,3443.9,2.90360269]
[1762579493336,0.9815,3444.0,3443.8,0.1458]
[1762579493636,0.5934,3443.9,3443.8,3.04956909]
[1762579493937,0.5934,3443.9,3443.8,0.001]
[1762579493938,1.0807,3443.9,3443.8,0.001]
[1762579495310,1.25747701,3445.2,3443.9,0.405504]
[1762579495530,0.4873,3444.8,3443.8,0.001]
[1762579495919,0.4873,3444.8,3444.0,2.90358689]
[1762579496119,0.4873,3444.8,3443.8,0.001]
[1762579496360,0.4873,3444.8,3443.9,2.90368477]
[1762579496529,0.4873,3444.8,3444.3,2.9033379]
[1762579496756,0.4873,3444.8,3443.8,0.001]
[1762579496933,0.4873,3444.8,3443.9,2.90368477]
[1762579497143,0.4873,3444.8,3444.4,2.90320537]
[1762579497370,0.007,3444.9,3444.8,3.30843014]
[1762579497567,0.007,3444.9,3444.8,3.69583014]
[1762579497717,0.007,3444.9,3444.8,4.08323014]
[1762579498758,0.007,3444.9,3444.8,4.1122594]
[1762579498966,0.007,3444.9,3444.8,4.08323014]
[1762579501964,0.007,3444.9,3444.8,3.69583014]
[1762579502472,0.007,3444.9,3444.8,4.08323014]
[1762579504124,0.007,3444.9,3444.8,4.1122594]
[1762579505424,0.007,3444.9,3444.8,4.2570594]
[1762579506168,0.002,3445.3,3445.2,2.9025891]
[1762579506465,0.002,3445.3,3445.2,3.0473891]
[1762579506628,0.002,3445.3,3445.2,3.8221891]
[1762579507229,0.002,3445.3,3445.2,3.4347891]
[1762579507448,0.002,3445.3,3445.2,3.0473891]
[1762579507767,0.002,3445.3,3445.2,3.4347891]
[1762579509186,0.002,3445.3,3445.2,4.25671899]
[1762579510293,0.002,3445.3,3445.2,5.51643099]
[1762579510592,0.002,3445.6,3445.2,5.51643099]
[1762579510776,0.005,3445.9,3445.8,3.30758769]
[1762579510980,0.005,3445.9,3445.8,3.86880852]
[1762579511179,0.005,3445.9,3445.8,3.83978769]
[1762579511999,0.005,3445.9,3445.8,3.45238769]
[1762579512496,0.005,3445.9,3445.8,3.83978769]
[1762579513300,0.005,3445.9,3445.8,3.86880852]
[1762579513471,0.005,3445.9,3445.8,3.83978769]
[1762579513999,0.005,3445.9,3445.8,4.25620852]
[1762579514309,0.1498,3446.9,3446.8,2.90124173]
[1762579514594,0.005,3446.9,3446.8,2.90124173]
[1762579514765,0.949,3446.9,3446.8,2.90124173]
[1762579514965,0.949,3446.9,3446.5,2.90144117]
[1762579515196,0.9177,3446.8,3446.5,2.90144097]
[1762579515496,0.4692,3446.8,3446.7,2.9013259]
[1762579515724,0.005,3446.9,3446.8,2.90124173]
[1762579515936,0.4748,3446.6,3446.1,0.405504]
[1762579516137,0.4748,3446.6,3446.5,2.90149426]
[1762579516288,0.944,3446.6,3446.5,2.90149426]
[1762579517018,0.4748,3446.6,3446.5,2.90149426]
[1762579517193,0.005,3446.9,3446.8,2.90124173]
[1762579517583,0.949,3446.9,3446.8,2.90124173]
[1762579518206,0.949,3446.9,3446.5,2.9014874]
[1762579518408,0.4485,3446.7,3446.6,2.90139519]
[1762579518780,0.9177,3446.7,3445.8,0.1465]
[1762579518987,0.4746,3446.5,3446.4,2.90157845]
[1762579519433,0.9438,3446.5,3446.4,2.90157845]
[1762579519589,0.9438,3446.5,3446.3,2.90164538]
[1762579519785,0.4692,3446.4,3446.3,2.90164538]
[1762579520125,0.4692,3446.4,3445.2,0.1465]
[1762579520126,0.9179,3446.4,3445.2,0.1465]
[1762579520427,0.4743,3446.2,3445.2,0.1465]
[1762579520600,0.4743,3446.2,3446.1,2.90183105]
[1762579521205,0.4743,3446.2,3445.8,2.9020676]
[1762579521402,0.4692,3446.2,3446.0,2.90188228]
[1762579521617,0.6619,3445.9,3445.2,0.1465]
[1762579521926,0.6619,3445.9,3445.8,2.90208369]
[1762579522294,1.1311,3445.9,3445.8,2.90208369]
[1762579523426,1.1311,3445.9,3445.2,0.1465]
[1762579523625,0.4485,3445.7,3445.6,2.90225214]
[1762579524527,0.9177,3445.7,3445.6,2.90225214]
[1762579524728,0.9177,3445.7,3445.6,3.04705214]
[1762579524934,0.4485,3445.7,3445.6,3.04705214]
[1762579525105,0.9177,3445.7,3445.3,2.90243114]
[1762579525307,0.4487,3445.4,3444.7,2.90300092]
[1762579525509,0.4743,3445.0,3444.8,2.9028547]
[1762579525713,0.4743,3445.0,3444.7,0.405504]
[1762579525912,0.9435,3445.0,3444.9,2.90384188]
[1762579529313,0.9435,3445.0,3444.9,0.001]
[1762579529639,0.9435,3445.0,3444.9,2.90384188]
[1762579529936,0.4743,3445.0,3444.9,2.90384188]
[1762579530646,0.4692,3445.8,3445.2,2.9025891]
[1762579530959,0.4692,3445.8,3444.9,0.3884]
[1762579530960,0.4692,3445.8,3445.3,0.02902504]
[1762579531113,0.4692,3445.8,3445.0,0.405504]
[1762579531457,0.4692,3445.8,3445.3,2.90248536]
[1762579531948,0.4748,3445.4,3445.2,2.90257908]
[1762579532149,3.37130598,3445.8,3445.2,2.90257908]
[1762579532349,0.4748,3445.3,3445.2,2.90257908]
[1762579533056,0.4989,3445.8,3445.5,2.90227038]
[1762579533514,0.4854,3445.6,3445.5,2.90227038]
[1762579534226,0.9843,3445.6,3445.4,0.0290242]
[1762579534429,0.4087,3445.5,3445.3,2.90247485]
[1762579534661,0.4989,3445.6,3445.5,2.90233638]
[1762579535261,0.9843,3445.6,3445.5,2.90233638]
[1762579536559,0.9843,3445.6,3445.4,2.90240444]
[1762579536920,0.4087,3445.5,3445.4,2.90240444]
[1762579538912,0.9076,3445.5,3445.3,0.1448]
[1762579539129,0.4846,3445.4,3445.3,0.1448]
[1762579539347,0.9835,3445.4,3445.3,0.1448]
[1762579539739,0.9835,3445.4,3445.0,2.90270094]
[1762579540065,0.4854,3445.1,3445.0,4.30721294]
[1762579540953,0.4854,3445.1,3445.0,3.04750094]
[1762579543229,0.9718,3445.1,3444.9,0.001]
[1762579543436,0.421,3445.0,3444.9,0.001]
[1762579543632,0.9074,3445.0,3444.9,0.001]
[1762579545561,3.81015761,3445.0,3444.9,0.001]
[1762579549645,5.06986961,3445.0,3444.9,0.001]
[1762579554469,2.167112,3445.0,3444.9,0.001]
[1762579555000,5.06986961,3445.0,3444.9,0.001]
[1762579557906,2.243012,3445.0,3444.9,0.001]
[1762579558205,5.14576961,3445.0,3444.9,0.001]
[1762579562078,1.22633227,3445.9,3444.9,4.82910371]
[1762579562278,0.002,3446.3,3445.3,0.405504]
[1762579562614,0.4594,3446.2,3445.3,3.30800853]
[1762579562816,0.002,3445.9,3445.7,2.90213399]
[1762579564624,0.002,3445.9,3445.8,3.28948369]
[1762579565826,0.002,3445.9,3445.5,2.90233251]
[1762579566135,0.002,3445.9,3445.7,2.90216362]
[1762579566788,0.002,3445.9,3445.8,2.90208369]
[1762579567034,0.002,3445.9,3445.8,3.28948369]
[1762579567203,0.002,3445.9,3445.8,3.31850452]
[1762579567536,0.002,3445.9,3445.8,3.67688369]
[1762579569438,0.4539,3445.9,3445.5,2.90233638]
[1762579569607,1.1121,3445.9,3445.4,0.1465]
[1762579570013,1.1121,3445.9,3445.5,2.90230891]
[1762579570497,0.4519,3445.6,3444.9,0.001]
[1762579570722,0.4594,3445.8,3445.4,2.9023993]
[1762579570921,0.4594,3445.8,3444.9,0.001]
[1762579571256,0.4594,3445.8,3445.4,2.90234276]
[1762579571456,0.4594,3445.8,3445.6,2.90220944]
[1762579572062,0.4519,3445.7,3445.5,2.90230512]
[1762579573028,0.4519,3445.7,3445.3,3.19379653]
[1762579573328,0.4519,3445.7,3445.4,2.90241459]
[1762579573526,0.4519,3445.7,3445.5,2.90233499]
[1762579573969,0.4519,3445.7,3445.6,2.90225214]
[1762579575763,0.1468,3445.9,3445.8,2.90208369]
[1762579575986,0.002,3445.9,3445.8,3.28948369]
[1762579576279,0.002,3445.9,3445.8,4.25620852]
[1762579576568,0.002,3445.9,3445.8,4.22718769]
[1762579576728,0.002,3445.9,3445.8,5.48689969]
[1762579578339,0.002,3446.3,3446.2,3.30725085]
[1762579578687,0.002,3446.3,3446.2,4.98338031]
[1762579578885,0.002,3446.3,3446.2,5.34176285]
[1762579579035,0.002,3446.3,3446.2,5.48656285]
[1762579581568,0.002,3446.3,3446.2,6.05942645]
[1762579583611,0.002,3446.7,3446.6,4.56662608]
[1762579583813,0.002,3446.7,3446.6,4.98304018]
[1762579584113,0.002,3446.7,3446.6,5.51524018]
[1762579584300,0.002,3446.7,3446.6,5.48622608]
[1762579587048,1e-08,3446.9,3446.8,3.28864173]
[1762579587321,0.002,3448.1,3447.8,2.90040025]
[1762579587476,0.002,3448.1,3448.0,3.30573601]
[1762579587815,0.002,3448.1,3448.0,5.34024801]
[1762579588393,0.002,3448.1,3448.0,5.36925033]
[1762579588592,0.002,3448.1,3448.0,5.91031859]
[1762579590220,0.002,3448.1,3448.0,5.34024801]
[1762579590941,0.002,3448.1,3448.0,5.36925033]
[1762579591128,0.002,3448.1,3448.0,5.34024801]
[1762579592547,0.002,3448.1,3448.0,4.54734401]
[1762579593035,0.002,3448.1,3448.0,4.95284801]
[1762579595308,0.002,3448.1,3448.0,4.56544801]
[1762579597339,0.002,3448.1,3448.0,5.09764801]
[1762579598166,0.002,3448.1,3448.0,4.71024801]
[1762579598326,0.002,3448.1,3448.0,5.09764801]
[1762579600853,1e-08,3448.5,3448.4,3.8402996]
[1762579601036,1e-08,3448.5,3448.4,5.2448116]
[1762579601222,1e-08,3448.5,3448.4,5.6322116]
[1762579609054,1e-08,3448.5,3448.4,5.2448116]
[1762579612501,1e-08,3448.5,3448.4,5.6322116]
[1762579612792,1e-08,3448.5,3448.4,5.66121055]
[1762579614113,1e-08,3448.5,3448.4,5.6322116]
[1762579614487,1e-08,3448.5,3448.4,3.4320956]
[1762579614795,1e-08,3448.5,3447.9,0.001]
[1762579614796,0.97760001,3448.5,3447.9,0.001]
[1762579614994,0.48240001,3448.5,3448.1,2.90013279]
[1762579615200,0.4824,3448.4,3448.1,2.90013279]
[1762579615508,0.4952,3448.2,3448.1,2.90013279]
[1762579616009,0.9776,3448.2,3448.1,2.90013279]
[1762579618780,0.4952,3448.2,3448.1,2.90013279]
[1762579620471,1e-08,3448.5,3448.4,3.3053996]
[1762579620675,1e-08,3448.5,3448.4,3.6927996]
[1762579620938,0.97760001,3448.5,3448.4,3.3053996]
[1762579621496,0.49520001,3448.5,3448.4,3.3053996]
[1762579621696,1e-08,3448.5,3448.4,3.3053996]
[1762579622323,1e-08,3448.5,3448.4,4.10919855]
[1762579622525,1e-08,3448.9,3448.8,3.69246326]
[1762579622725,1e-08,3448.9,3448.8,4.95217526]
[1762579623118,1e-08,3448.9,3448.8,5.33957526]
[1762579624662,1e-08,3448.9,3448.8,5.48437526]
[1762579625640,1e-08,3448.9,3448.8,5.33957526]
[1762579628639,0.45210001,3448.9,3448.8,4.56477526]
[1762579628949,1e-08,3448.9,3448.8,5.33957526]
[1762579630261,1e-08,3448.9,3448.8,4.95217526]
[1762579630963,1e-08,3448.9,3448.8,5.33957526]
[1762579633064,0.45210001,3448.9,3448.8,4.56477526]
[1762579633271,0.45210001,3448.9,3448.8,4.15927126]
[1762579633475,0.45210001,3448.9,3448.8,2.89955926]
[1762579633648,0.91470001,3448.9,3448.8,2.89955926]
[1762579634062,0.91470001,3448.9,3448.8,3.30506326]
[1762579634263,0.45210001,3448.9,3448.8,3.30506326]
[1762579635175,0.63340001,3448.9,3448.8,3.30506326]
[1762579635681,1e-08,3448.9,3448.8,5.09697526]
[1762579635991,1e-08,3448.9,3448.8,5.09797526]
[1762579636148,1e-08,3448.9,3448.8,5.48537526]
[1762579636349,1e-08,3448.9,3448.8,5.51437085]
[1762579636890,1e-08,3448.9,3448.8,5.48537526]
[1762579637382,1e-08,3448.9,3448.8,4.71057526]
[1762579637692,1e-08,3448.9,3448.8,5.09797526]
[1762579638746,1e-08,3448.9,3448.8,8.88797526]
[1762579639734,1e-08,3448.9,3448.8,8.50057526]
[1762579639990,1e-08,3448.9,3448.8,8.88797526]
[1762579641213,1e-08,3448.9,3448.8,9.27537526]
[1762579642304,1e-08,3448.9,3448.8,8.88797526]
[1762579642510,1e-08,3448.9,3448.8,10.31370305]
[1762579643065,1e-08,3448.9,3448.8,9.27537526]
[1762579645206,1e-08,3448.9,3448.8,12.33537526]
[1762579645407,1e-08,3448.9,3448.8,9.27537526]
[1762579646430,1e-08,3448.9,3448.8,10.31370305]
[1762579646729,1e-08,3448.9,3448.8,6.52370305]
[1762579648415,1e-08,3448.9,3448.8,5.48537526]
[1762579649702,1e-08,3448.9,3448.8,5.09797526]
[1762579650404,1e-08,3448.9,3448.8,9.38978543]
[1762579651024,1e-08,3449.3,3449.2,3.304727]
[1762579651333,1e-08,3449.3,3449.2,10.45939599]
[1762579651507,1e-08,3449.3,3449.2,10.43040376]
[1762579651709,1e-08,3449.3,3449.2,9.38844917]
[1762579652291,1e-08,3449.3,3449.2,5.99473236]
[1762579652494,1e-08,3449.3,3449.2,5.60733236]
[1762579653812,0.49060001,3449.3,3449.2,5.60733236]
[1762579654008,0.95500001,3449.3,3449.2,5.60733236]
[1762579654346,0.49060001,3449.3,3449.2,5.60733236]
[1762579654500,1e-08,3449.3,3449.2,5.60733236]
[1762579654696,1e-08,3449.3,3449.2,6.02372459]
[1762579654917,1e-08,3449.3,3449.2,5.339239]
[1762579655632,1e-08,3449.3,3449.2,4.951839]
[1762579658761,1e-08,3449.3,3449.2,5.339239]
[1762579660266,1e-08,3449.3,3449.2,5.36823123]
[1762579660556,1e-08,3449.9,3449.8,3.69162276]
[1762579660762,1e-08,3449.9,3449.8,4.95133476]
[1762579661969,1e-08,3449.9,3449.8,5.54104909]
[1762579662359,1e-08,3449.9,3449.8,5.68584909]
[1762579662529,0.47710001,3449.9,3449.8,5.29844909]
[1762579663462,1e-08,3449.9,3449.8,5.97674909]
[1762579663646,1e-08,3449.9,3449.8,5.68584909]
[1762579663851,1e-08,3449.9,3449.8,5.29844909]
[1762579665433,1e-08,3449.9,3449.8,5.68584909]
[1762579666367,1e-08,3449.9,3449.8,5.29844909]
[1762579666751,0.66560001,3449.9,3449.8,5.29844909]
[1762579667073,0.47710001,3449.9,3449.8,5.29844909]
[1762579667771,1e-08,3449.9,3449.8,5.29844909]
[1762579668469,1e-08,3449.9,3449.8,9.33650813]
[1762579668630,0.47710001,3449.9,3449.8,9.33650813]
[1762579669741,1.12530001,3449.9,3449.8,3.44902276]
[1762579669943,1.12530001,3449.9,3449.8,3.04351876]
[1762579669944,1.12730001,3449.9,3449.8,3.04351876]
[1762579670175,1.12730001,3449.9,3449.8,3.44902276]
[1762579672640,0.47910001,3449.9,3449.8,3.44902276]
[1762579672956,1.12730001,3449.9,3449.8,3.44902276]
[1762579676835,0.66760001,3449.9,3449.8,3.44902276]
[1762579677035,1.12730001,3449.9,3449.8,3.44902276]
[1762579678811,0.47910001,3449.9,3449.8,3.44902276]
[1762579678981,1.12730001,3449.9,3449.8,3.44902276]
[1762579681783,0.66760001,3449.9,3449.8,3.44902276]
[1762579681985,0.00200001,3449.9,3449.8,5.29282614]
[1762579682189,0.002,3450.6,3450.5,3.3036347]
[1762579682517,0.002,3450.6,3450.5,9.22370574]
[1762579682809,0.002,3450.6,3450.5,9.67750574]
[1762579683372,1e-08,3450.9,3450.8,5.03179475]
[1762579683598,1e-08,3450.9,3450.8,9.06985379]
[1762579684280,1e-08,3450.9,3450.8,9.52365379]
[1762579684614,1e-08,3450.9,3450.8,9.06985379]
[1762579684779,1e-08,3450.9,3450.8,9.52365379]
[1762579685753,0.46210001,3450.9,3450.8,4.56309475]
[1762579687448,1e-08,3450.9,3450.8,4.56309475]
[1762579687648,1e-08,3450.9,3450.8,5.03179475]
[1762579687840,1e-08,3450.9,3450.8,4.56309475]
[1762579688242,0.00200001,3450.9,3450.8,4.56309475]
[1762579688454,0.46410001,3450.9,3450.8,4.56309475]
[1762579689329,1.13420001,3450.9,3450.8,4.56309475]
[1762579689942,1.13420001,3450.9,3450.8,3.30338275]
[1762579692479,0.00200001,3450.9,3450.8,7.81014179]
[1762579692848,0.00200001,3450.9,3450.8,9.06985379]
[1762579693050,0.00200001,3450.9,3450.8,9.52365379]
[1762579693388,0.00200001,3450.9,3450.8,9.66845379]
[1762579695882,0.002,3451.3,3451.2,4.56275888]
[1762579696088,0.002,3451.3,3451.2,8.60081792]
[1762579696387,0.9412,3451.3,3451.2,3.30304688]
[1762579700786,0.4641,3451.3,3451.2,3.30304688]
[1762579700990,0.9412,3451.3,3451.2,3.30304688]
[1762579702090,0.4641,3451.3,3451.2,3.30304688]
[1762579703154,0.9412,3451.3,3451.2,3.30304688]
[1762579704865,0.4641,3451.3,3451.2,3.30304688]
[1762579705067,0.002,3451.3,3451.2,3.30304688]
[1762579706078,0.002,3451.3,3451.2,3.44784688]
[1762579708572,0.002,3451.3,3451.2,7.95460592]
[1762579708758,0.002,3451.3,3451.2,9.66811792]
[1762579711276,0.002,3451.3,3451.2,9.21431792]
[1762579712692,0.9473,3451.3,3451.2,4.70755888]
[1762579712896,0.4848,3451.3,3451.2,4.70755888]
[1762579713096,0.002,3451.3,3451.2,5.17115888]
[1762579714868,0.4848,3451.3,3451.2,4.70755888]
[1762579715896,0.002,3451.3,3451.2,4.70755888]
[1762579717513,0.002,3451.3,3451.2,5.17115888]
[1762579717828,0.002,3451.3,3451.2,9.54231792]
[1762579718014,0.002,3451.3,3451.2,10.69893162]
[1762579718215,0.002,3451.3,3451.2,10.22103162]
[1762579718410,0.002,3451.3,3451.2,10.69893162]
[1762579720837,0.002,3451.3,3451.2,10.45087258]
[1762579721010,0.4848,3451.3,3451.2,8.35275888]
[1762579721912,0.9565,3451.3,3451.2,4.15725488]
[1762579723163,0.9565,3451.3,3451.2,2.89754288]
[1762579723325,0.9565,3451.3,3451.2,3.30304688]
[1762579723861,0.9565,3451.3,3451.2,2.89754288]
[1762579725227,0.9565,3451.3,3450.9,0.001]
[1762579725426,0.4717,3451.0,3450.9,0.001]
[1762579725855,0.9434,3451.0,3450.9,0.406504]
[1762579726065,0.9434,3451.0,3450.9,3.30429877]
[1762579726365,0.9434,3451.0,3450.9,0.001]
[1762579726539,0.9434,3451.0,3450.9,0.406504]
[1762579726741,0.9434,3451.0,3450.9,0.001]
[1762579727527,3.8411108,3451.0,3450.9,0.001]
[1762579727947,0.9434,3451.0,3450.9,0.001]
[1762579731865,0.8934,3451.0,3450.9,0.001]
[1762579734726,0.8934,3451.0,3450.9,2.89879477]
[1762579738666,0.4217,3451.0,3450.9,3.30429877]
[1762579739042,0.8934,3451.0,3450.9,3.30429877]
[1762579741669,0.4217,3451.0,3450.9,3.30429877]
[1762579741876,0.002,3451.3,3451.2,3.30304688]
[1762579742071,0.4737,3451.3,3451.2,3.30304688]
[1762579742275,0.9454,3451.3,3451.2,3.30304688]
[1762579742977,0.4737,3451.3,3451.2,3.44784688]
[1762579743270,0.47,3451.3,3451.2,3.44784688]
[1762579745175,0.9208,3451.3,3451.2,0.550304]
[1762579745381,0.9208,3451.3,3451.2,3.44784688]
[1762579746737,0.002,3451.3,3451.2,3.44784688]
[1762579747274,0.002,3451.3,3451.2,3.92684688]
[1762579747675,0.002,3451.3,3451.2,3.44784688]
[1762579749267,0.002,3451.3,3451.2,4.26654688]
[1762579749484,0.002,3451.3,3451.2,5.52625888]